[Event "FIDE Women's Grand Swiss 2023"]
[Site "Villa Marina, Douglas, Isle of Man, Isle Of Man"]
[Date "2023.10.28"]
[Round "4.9"]
[White "Stefanova, Antoaneta"]
[Black "Guichard, Pauline"]
[Result "1-0"]
[TimeControl "40/90 + 30 + 30s/move"]
[WhiteFideId "2902257"]
[BlackFideId "639370"]
[WhiteElo "2424"]
[BlackElo "2358"]

1. d4 {[%clk 01:30:57]} {[%emt 00:00:02]} Nf6 {[%clk 01:30:53]} {[%emt
00:00:07]} 2. c4 {[%clk 01:31:18]} {[%emt 00:00:10]} e6 {[%clk 01:31:13]}
{[%emt 00:00:09]} 3. Nf3 {[%clk 01:31:41]} {[%emt 00:00:07]} d5 {[%clk
01:31:28]} {[%emt 00:00:15]} 4. Nc3 {[%clk 01:31:51]} {[%emt 00:00:20]} dxc4
{[%clk 01:31:37]} {[%emt 00:00:21]} 5. e4 {[%clk 01:31:46]} {[%emt 00:00:36]}
Bb4 {[%clk 01:30:55]} {[%emt 00:01:13]} 6. Bxc4 {[%clk 01:29:04]} {[%emt
00:03:12]} Nxe4 {[%clk 01:30:49]} {[%emt 00:00:36]} 7. O-O {[%clk 01:28:24]}
{[%emt 00:01:10]} Nxc3 {[%clk 01:30:51]} {[%emt 00:00:28]} 8. bxc3 {[%clk
01:28:49]} {[%emt 00:00:05]} Be7 {[%clk 01:31:07]} {[%emt 00:00:13]} 9. Qc2
{[%clk 01:24:12]} {[%emt 00:05:07]} Nd7 {[%clk 01:22:07]} {[%emt 00:09:29]} 10.
Rd1 {[%clk 01:20:17]} {[%emt 00:04:25]} O-O {[%clk 01:21:15]} {[%emt 00:01:23]}
11. Bd3 {[%clk 01:19:10]} {[%emt 00:01:37]} h6 {[%clk 01:10:37]} {[%emt
00:11:07]} 12. Qe2 {[%clk 01:17:54]} {[%emt 00:01:46]} Rb8 {[%clk 00:57:57]}
{[%emt 00:13:10]} 13. Qe4 {[%clk 01:00:53]} {[%emt 00:17:31]} Nf6 {[%clk
00:56:43]} {[%emt 00:01:45]} 14. Qh4 {[%clk 01:01:14]} {[%emt 00:00:09]} Nh7
{[%clk 00:44:41]} {[%emt 00:12:31]} 15. Qg3 {[%clk 00:56:57]} {[%emt 00:04:47]}
Bd6 {[%clk 00:41:34]} {[%emt 00:03:37]} 16. Ne5 {[%clk 00:55:19]} {[%emt
00:02:08]} f5 {[%clk 00:40:06]} {[%emt 00:01:59]} 17. Bxh6 {[%clk 00:51:21]}
{[%emt 00:04:27]} Bxe5 {[%clk 00:39:57]} {[%emt 00:00:39]} 18. dxe5 {[%clk
00:51:15]} {[%emt 00:00:37]} Qe7 {[%clk 00:40:21]} {[%emt 00:00:05]} 19. Bc4
{[%clk 00:38:04]} {[%emt 00:13:41]} Kh8 {[%clk 00:36:24]} {[%emt 00:04:27]} 20.
Be3 {[%clk 00:37:58]} {[%emt 00:00:35]} g5 {[%clk 00:34:20]} {[%emt 00:02:35]}
21. f4 {[%clk 00:37:47]} {[%emt 00:00:41]} gxf4 {[%clk 00:21:36]} {[%emt
00:13:14]} 22. Qxf4 {[%clk 00:34:01]} {[%emt 00:04:15]} b5 {[%clk 00:21:51]}
{[%emt 00:00:15]} 23. Bb3 {[%clk 00:29:59]} {[%emt 00:04:32]} Rg8 {[%clk
00:19:01]} {[%emt 00:03:20]} 24. Qh6 {[%clk 00:17:46]} {[%emt 00:12:43]} a5
{[%clk 00:14:40]} {[%emt 00:04:52]} 25. Rd4 {[%clk 00:08:52]} {[%emt 00:09:24]}
a4 {[%clk 00:13:21]} {[%emt 00:01:49]} 26. Bc2 {[%clk 00:09:18]} {[%emt
00:00:04]} Bb7 {[%clk 00:07:49]} {[%emt 00:06:02]} 27. g3 {[%clk 00:09:42]}
{[%emt 00:00:05]} Rg7 {[%clk 00:04:56]} {[%emt 00:03:22]} 28. Rad1 {[%clk
00:08:12]} {[%emt 00:02:00]} Rbg8 {[%clk 00:04:48]} {[%emt 00:00:38]} 29. Rd7
{[%clk 00:07:21]} {[%emt 00:01:21]} Qe8 {[%clk 00:01:23]} {[%emt 00:03:56]} 30.
Qxg7+ {[%clk 00:06:10]} {[%emt 00:01:41]} Rxg7 {[%clk 00:01:43]} {[%emt
00:00:10]} 31. Rd8 {[%clk 00:06:37]} {[%emt 00:00:03]} Qxd8 {[%clk 00:00:58]}
{[%emt 00:01:15]} 32. Rxd8+ {[%clk 00:07:06]} {[%emt 00:00:02]} Rg8 {[%clk
00:01:27]} {[%emt 00:00:01]} 33. Rd7 {[%clk 00:06:27]} {[%emt 00:01:09]} Rg7
{[%clk 00:01:52]} {[%emt 00:00:04]} 34. Rd8+ {[%clk 00:01:50]} {[%emt
00:05:07]} Rg8 {[%clk 00:02:18]} {[%emt 00:00:04]} 35. Rd4 {[%clk 00:01:32]}
{[%emt 00:00:49]} Bc6 {[%clk 00:02:00]} {[%emt 00:00:48]} 36. a3 {[%clk
00:01:33]} {[%emt 00:00:29]} Rb8 {[%clk 00:01:28]} {[%emt 00:01:02]} 37. Rh4
{[%clk 00:01:24]} {[%emt 00:00:38]} Kg7 {[%clk 00:01:15]} {[%emt 00:00:44]} 38.
Kf2 {[%clk 00:01:01]} {[%emt 00:00:53]} Nf8 {[%clk 00:01:21]} {[%emt 00:00:24]}
39. Bh6+ {[%clk 00:01:05]} {[%emt 00:00:26]} Kg8 {[%clk 00:00:50]} {[%emt
00:01:01]} 40. Bxf8 {[%clk 00:01:03]} {[%emt 00:00:31]} Rxf8 {[%clk 00:01:17]}
{[%emt 00:00:04]} 41. Ke3 {[%clk 00:24:03]} {[%emt 00:07:31]} Rd8 {[%clk
00:23:37]} {[%emt 00:08:10]} 42. Rd4 {[%clk 00:21:33]} {[%emt 00:03:00]} Bd5
{[%clk 00:22:33]} {[%emt 00:01:33]} 43. Bd3 {[%clk 00:03:46]} {[%emt 00:18:18]}
c5 {[%clk 00:19:50]} {[%emt 00:03:14]} 44. Rf4 {[%clk 00:04:06]} {[%emt
00:00:09]} Bc6 {[%clk 00:11:47]} {[%emt 00:08:33]} 45. g4 {[%clk 00:04:29]}
{[%emt 00:00:07]} fxg4 {[%clk 00:10:58]} {[%emt 00:01:19]} 46. Rxg4+ {[%clk
00:04:58]} Kf7 {[%clk 00:11:23]} {[%emt 00:00:05]} 47. h4 {[%clk 00:02:20]}
{[%emt 00:03:09]} Rb8 {[%clk 00:04:08]} {[%emt 00:07:45]} 48. h5 {[%clk
00:02:25]} {[%emt 00:00:25]} b4 {[%clk 00:04:15]} {[%emt 00:00:23]} 49. cxb4
{[%clk 00:02:50]} {[%emt 00:00:06]} cxb4 {[%clk 00:04:41]} {[%emt 00:00:03]} 50.
axb4 {[%clk 00:01:01]} {[%emt 00:02:18]} a3 {[%clk 00:04:54]} {[%emt 00:00:17]}
51. h6 {[%clk 00:01:09]} {[%emt 00:00:22]} Rh8 {[%clk 00:00:40]} {[%emt
00:04:43]} 52. h7 {[%clk 00:00:46]} {[%emt 00:00:53]} a2 {[%clk 00:00:37]}
{[%emt 00:00:34]} 53. Rg1 {[%clk 00:01:10]} {[%emt 00:00:05]} Bd5 {[%clk
00:00:42]} {[%emt 00:00:24]} 54. Kd4 {[%clk 00:01:00]} {[%emt 00:00:40]} Rc8
{[%clk 00:00:39]} {[%emt 00:00:33]} 55. b5 {[%clk 00:00:59]} {[%emt 00:00:31]}
Bb3 {[%clk 00:00:34]} {[%emt 00:00:35]} 56. Bg6+ {[%emt 00:00:44]} Ke7 {[%clk
00:00:49]} {[%emt 00:00:13]} 57. Bc2 {[%clk 00:00:39]} {[%emt 00:00:38]} Bxc2
{[%clk 00:01:00]} {[%emt 00:00:20]} 58. Rg7+ {[%clk 00:01:04]} {[%emt
00:00:04]} 1-0

[Event "FIDE Women's Grand Swiss 2023"]
[Site "Villa Marina, Douglas, Isle of Man, Isle Of Man"]
[Date "2023.10.28"]
[Round "4.10"]
[White "Dronavalli, Harika"]
[Black "Munguntuul, Batkhuyag"]
[Result "0-1"]
[TimeControl "40/90 + 30 + 30s/move"]
[WhiteFideId "5015197"]
[BlackFideId "4900758"]
[WhiteElo "2502"]
[BlackElo "2366"]

1. d4 {[%clk 01:30:37]} {[%emt 00:00:22]} d5 {[%clk 01:30:56]} {[%emt
00:00:04]} 2. c4 {[%clk 01:31:00]} {[%emt 00:00:08]} c6 {[%clk 01:31:23]}
{[%emt 00:00:04]} 3. Nf3 {[%clk 01:31:20]} {[%emt 00:00:09]} Nf6 {[%clk
01:31:48]} {[%emt 00:00:04]} 4. Nc3 {[%clk 01:31:43]} {[%emt 00:00:07]} e6
{[%clk 01:32:10]} {[%emt 00:00:09]} 5. Bg5 {[%clk 01:31:57]} {[%emt 00:00:16]}
h6 {[%clk 01:32:35]} {[%emt 00:00:05]} 6. Bh4 {[%clk 01:31:52]} {[%emt
00:00:35]} dxc4 {[%clk 01:32:55]} {[%emt 00:00:10]} 7. e4 {[%clk 01:32:02]}
{[%emt 00:00:20]} g5 {[%clk 01:33:21]} {[%emt 00:00:04]} 8. Bg3 {[%clk
01:32:27]} {[%emt 00:00:05]} b5 {[%clk 01:33:45]} {[%emt 00:00:06]} 9. h4
{[%clk 01:31:54]} {[%emt 00:01:03]} g4 {[%clk 01:26:13]} {[%emt 00:08:02]} 10.
Ne5 {[%clk 01:32:18]} {[%emt 00:00:06]} Nbd7 {[%clk 01:12:13]} {[%emt
00:14:30]} 11. Be2 {[%clk 01:29:54]} {[%emt 00:02:53]} Nxe5 {[%clk 01:00:23]}
{[%emt 00:12:21]} 12. Bxe5 {[%clk 01:29:07]} {[%emt 00:01:17]} Rg8 {[%clk
00:59:29]} {[%emt 00:01:24]} 13. Qc2 {[%clk 01:17:21]} {[%emt 00:12:17]} Bb7
{[%clk 00:56:57]} {[%emt 00:03:03]} 14. Rd1 {[%clk 01:14:26]} {[%emt 00:03:24]}
Be7 {[%clk 00:47:35]} {[%emt 00:09:51]} 15. Qc1 {[%clk 00:53:59]} {[%emt
00:20:58]} h5 {[%clk 00:46:04]} {[%emt 00:02:01]} 16. Qe3 {[%clk 00:51:17]}
{[%emt 00:03:12]} a6 {[%clk 00:41:37]} {[%emt 00:04:57]} 17. b3 {[%clk
00:38:49]} {[%emt 00:12:58]} Nd7 {[%clk 00:32:04]} {[%emt 00:10:03]} 18. Bg3
{[%clk 00:38:09]} {[%emt 00:01:09]} cxb3 {[%clk 00:29:00]} {[%emt 00:03:34]} 19.
axb3 {[%clk 00:38:17]} {[%emt 00:00:23]} c5 {[%clk 00:29:26]} {[%emt 00:00:03]}
20. O-O {[%clk 00:29:47]} {[%emt 00:08:59]} Bxh4 {[%clk 00:25:04]} {[%emt
00:04:53]} 21. dxc5 {[%clk 00:27:42]} {[%emt 00:02:36]} Bxg3 {[%clk 00:23:03]}
{[%emt 00:02:31]} 22. fxg3 {[%clk 00:27:33]} {[%emt 00:00:38]} Qg5 {[%clk
00:23:20]} {[%emt 00:00:13]} 23. Qxg5 {[%clk 00:18:36]} {[%emt 00:09:27]} Rxg5
{[%clk 00:23:48]} {[%emt 00:00:02]} 24. Rxf7 {[%clk 00:18:45]} {[%emt
00:00:22]} Bc6 {[%clk 00:19:47]} {[%emt 00:04:30]} 25. Rh7 {[%clk 00:17:05]}
{[%emt 00:01:57]} Rxc5 {[%clk 00:19:51]} {[%emt 00:00:39]} 26. Rh8+ {[%clk
00:13:44]} {[%emt 00:03:51]} Nf8 {[%clk 00:17:34]} {[%emt 00:02:47]} 27. Rf1
{[%clk 00:13:03]} {[%emt 00:01:11]} Ke7 {[%clk 00:17:55]} {[%emt 00:00:10]} 28.
Rc1 {[%clk 00:10:12]} {[%emt 00:03:21]} Kf7 {[%clk 00:11:13]} {[%emt 00:07:12]}
29. b4 {[%clk 00:10:18]} {[%emt 00:00:24]} Re5 {[%clk 00:11:35]} {[%emt
00:00:07]} 30. Nd1 {[%clk 00:04:49]} {[%emt 00:05:59]} Rc8 {[%clk 00:10:34]}
{[%emt 00:01:31]} 31. Nf2 {[%clk 00:05:08]} {[%emt 00:00:11]} Kg7 {[%clk
00:10:17]} {[%emt 00:00:47]} 32. Nd3 {[%clk 00:05:30]} {[%emt 00:00:07]} Rxe4
{[%clk 00:04:01]} {[%emt 00:06:46]} 33. Rxh5 {[%clk 00:05:46]} {[%emt
00:00:15]} Rxe2 {[%clk 00:04:29]} {[%emt 00:00:02]} 34. Nf4 {[%clk 00:06:05]}
{[%emt 00:00:11]} Re4 {[%clk 00:04:30]} {[%emt 00:00:29]} 35. Rf1 {[%clk
00:06:13]} {[%emt 00:00:22]} Nh7 {[%clk 00:03:45]} {[%emt 00:01:15]} 36. Ra1
{[%clk 00:06:08]} {[%emt 00:00:36]} Bb7 {[%clk 00:02:19]} {[%emt 00:01:57]} 37.
Rd1 {[%clk 00:06:37]} Nf6 {[%clk 00:01:22]} {[%emt 00:01:27]} 38. Rg5+ {[%clk
00:07:03]} {[%emt 00:00:04]} Kf7 {[%clk 00:01:44]} {[%emt 00:00:07]} 39. Rf1
{[%clk 00:07:11]} {[%emt 00:00:22]} Rh8 {[%clk 00:01:04]} {[%emt 00:01:11]} 40.
Rc5 {[%clk 00:06:09]} {[%emt 00:01:32]} Rc4 {[%clk 00:01:12]} {[%emt 00:00:22]}
41. Rg5 {[%clk 00:01:24]} {[%emt 00:05:14]} Rc2 {[%clk 00:28:27]} {[%emt
00:03:15]} 42. Re5 {[%clk 00:31:49]} {[%emt 00:00:06]} Rd8 {[%clk 00:27:44]}
{[%emt 00:01:13]} 43. Rfe1 {[%clk 00:31:53]} {[%emt 00:00:25]} Rd6 {[%clk
00:27:08]} {[%emt 00:01:06]} 44. Kh2 {[%clk 00:30:09]} {[%emt 00:02:15]} Bd5
{[%clk 00:23:04]} {[%emt 00:04:34]} 45. Rf1 {[%clk 00:30:36]} {[%emt 00:00:03]}
Rb2 {[%clk 00:21:51]} {[%emt 00:01:42]} 46. Rg5 {[%clk 00:29:51]} {[%emt
00:01:14]} Bc4 {[%clk 00:20:55]} {[%emt 00:01:26]} 47. Re1 {[%clk 00:29:07]}
{[%emt 00:01:14]} Rdd2 {[%clk 00:21:06]} {[%emt 00:00:19]} 48. Rc5 {[%clk
00:28:43]} {[%emt 00:00:54]} Nd5 {[%clk 00:21:16]} {[%emt 00:00:20]} 49. Re4
{[%clk 00:28:46]} {[%emt 00:00:28]} Nxf4 {[%clk 00:21:29]} {[%emt 00:00:17]} 50.
Rxf4+ {[%clk 00:29:13]} {[%emt 00:00:03]} Ke7 {[%clk 00:21:48]} {[%emt
00:00:10]} 0-1

[Event "FIDE Women's Grand Swiss 2023"]
[Site "Villa Marina, Douglas, Isle of Man, Isle Of Man"]
[Date "2023.10.28"]
[Round "4.11"]
[White "Garifullina, Leya"]
[Black "Kosteniuk, Alexandra"]
[Result "1-0"]
[TimeControl "40/90 + 30 + 30s/move"]
[WhiteFideId "34127035"]
[BlackFideId "4128125"]
[WhiteElo "2402"]
[BlackElo "2523"]

1. d4 {[%clk 01:30:42]} {[%emt 00:00:16]} Nf6 {[%clk 01:30:49]} {[%emt
00:00:11]} 2. c4 {[%clk 01:31:05]} {[%emt 00:00:07]} e6 {[%clk 01:30:55]}
{[%emt 00:00:24]} 3. g3 {[%clk 01:31:28]} {[%emt 00:00:07]} d5 {[%clk
01:30:55]} {[%emt 00:00:30]} 4. Bg2 {[%clk 01:31:49]} {[%emt 00:00:08]} Bb4+
{[%clk 01:30:49]} {[%emt 00:00:36]} 5. Bd2 {[%clk 01:32:10]} {[%emt 00:00:08]}
a5 {[%clk 01:30:34]} {[%emt 00:00:46]} 6. Nf3 {[%clk 01:32:27]} {[%emt
00:00:12]} O-O {[%clk 01:30:46]} {[%emt 00:00:18]} 7. Qc2 {[%clk 01:32:33]}
{[%emt 00:00:24]} Nbd7 {[%clk 01:30:27]} {[%emt 00:00:49]} 8. O-O {[%clk
01:28:47]} {[%emt 00:04:16]} Be7 {[%clk 01:30:31]} {[%emt 00:00:26]} 9. b3
{[%clk 01:13:49]} {[%emt 00:15:29]} Ne4 {[%clk 01:26:47]} {[%emt 00:04:14]} 10.
Be3 {[%clk 01:10:17]} {[%emt 00:04:02]} c6 {[%clk 01:21:39]} {[%emt 00:05:38]}
11. Nc3 {[%clk 01:06:15]} {[%emt 00:04:31]} f5 {[%clk 01:19:17]} {[%emt
00:02:53]} 12. Rad1 {[%clk 01:03:12]} {[%emt 00:03:33]} Nxc3 {[%clk 01:03:59]}
{[%emt 00:15:49]} 13. Qxc3 {[%clk 01:03:30]} {[%emt 00:00:11]} b5 {[%clk
01:04:15]} {[%emt 00:00:14]} 14. cxd5 {[%clk 00:50:18]} {[%emt 00:13:41]} cxd5
{[%clk 01:04:39]} {[%emt 00:00:06]} 15. Qc6 {[%clk 00:41:46]} {[%emt 00:09:02]}
Ra6 {[%clk 00:59:45]} {[%emt 00:05:24]} 16. Qxb5 {[%clk 00:40:03]} {[%emt
00:02:13]} Rb6 {[%clk 00:59:57]} {[%emt 00:00:18]} 17. Qxa5 {[%clk 00:33:39]}
{[%emt 00:06:54]} Bb4 {[%clk 00:52:59]} {[%emt 00:07:28]} 18. Qa4 {[%clk
00:33:51]} {[%emt 00:00:19]} Bd6 {[%clk 00:26:36]} {[%emt 00:26:53]} 19. Bd2
{[%clk 00:26:53]} {[%emt 00:07:28]} Nf6 {[%clk 00:18:49]} {[%emt 00:08:18]} 20.
b4 {[%clk 00:22:01]} {[%emt 00:05:22]} Ba6 {[%clk 00:19:05]} {[%emt 00:00:13]}
21. Rfe1 {[%clk 00:21:27]} {[%emt 00:01:04]} Ne4 {[%clk 00:17:26]} {[%emt
00:02:09]} 22. a3 {[%clk 00:20:21]} {[%emt 00:01:36]} f4 {[%clk 00:11:24]}
{[%emt 00:06:32]} 23. Ne5 {[%clk 00:17:52]} {[%emt 00:02:59]} fxg3 {[%clk
00:06:57]} {[%emt 00:04:57]} 24. fxg3 {[%clk 00:18:10]} {[%emt 00:00:13]} Bb5
{[%clk 00:05:09]} {[%emt 00:02:18]} 25. Qb3 {[%clk 00:16:58]} {[%emt 00:01:41]}
Bxe5 {[%clk 00:04:26]} {[%emt 00:01:14]} 26. dxe5 {[%clk 00:17:18]} {[%emt
00:00:10]} Nxd2 {[%clk 00:04:08]} {[%emt 00:00:48]} 27. Rxd2 {[%clk 00:17:42]}
{[%emt 00:00:07]} Qg5 {[%clk 00:04:10]} {[%emt 00:00:27]} 28. Rdd1 {[%clk
00:14:56]} {[%emt 00:03:15]} Qxe5 {[%clk 00:04:05]} {[%emt 00:00:36]} 29. e4
{[%clk 00:14:27]} {[%emt 00:00:59]} d4 {[%clk 00:02:11]} {[%emt 00:02:24]} 30.
a4 {[%clk 00:14:24]} {[%emt 00:00:33]} Bd7 {[%clk 00:02:33]} {[%emt 00:00:07]}
31. b5 {[%clk 00:13:49]} {[%emt 00:01:05]} Rd6 {[%clk 00:03:02]} {[%emt
00:00:02]} 32. Rd3 {[%clk 00:12:24]} {[%emt 00:01:55]} Rc8 {[%clk 00:03:02]}
{[%emt 00:00:31]} 33. Red1 {[%clk 00:10:07]} {[%emt 00:02:47]} Qc5 {[%clk
00:03:17]} {[%emt 00:00:14]} 34. Qa3 {[%clk 00:09:33]} {[%emt 00:01:04]} e5
{[%clk 00:02:26]} {[%emt 00:01:21]} 35. Qxc5 {[%clk 00:09:19]} {[%emt
00:00:44]} Rxc5 {[%clk 00:02:55]} 36. Rb3 {[%clk 00:08:54]} {[%emt 00:00:55]}
Be6 {[%clk 00:02:02]} {[%emt 00:01:22]} 37. Rbb1 {[%clk 00:09:05]} {[%emt
00:00:19]} d3 {[%clk 00:00:38]} {[%emt 00:01:55]} 38. Bf1 {[%clk 00:08:53]}
{[%emt 00:00:41]} Bc4 {[%clk 00:00:31]} {[%emt 00:00:37]} 39. Kf2 {[%clk
00:04:52]} {[%emt 00:04:31]} Ba2 {[%clk 00:00:45]} {[%emt 00:00:17]} 40. Rb4
{[%clk 00:04:55]} {[%emt 00:00:26]} d2 {[%clk 00:00:34]} {[%emt 00:00:41]} 41.
Rb2 {[%clk 00:02:52]} {[%emt 00:02:32]} Rc1 {[%clk 00:20:20]} {[%emt 00:10:44]}
42. Rdxd2 {[%clk 00:33:02]} {[%emt 00:00:20]} Rf6+ {[%clk 00:20:40]} {[%emt
00:00:10]} 43. Kg2 {[%clk 00:32:47]} {[%emt 00:00:45]} Be6 {[%clk 00:20:01]}
{[%emt 00:01:09]} 44. Rf2 {[%clk 00:32:03]} {[%emt 00:01:14]} Bc8 {[%clk
00:19:45]} {[%emt 00:00:46]} 45. Rxf6 {[%clk 00:30:13]} {[%emt 00:02:19]} gxf6
{[%clk 00:20:14]} {[%emt 00:00:02]} 46. a5 {[%clk 00:30:00]} {[%emt 00:00:41]}
Bb7 {[%clk 00:20:39]} {[%emt 00:00:07]} 47. a6 {[%clk 00:29:45]} {[%emt
00:00:45]} 1-0

[Event "FIDE Women's Grand Swiss 2023"]
[Site "Villa Marina, Douglas, Isle of Man, Isle Of Man"]
[Date "2023.10.28"]
[Round "4.13"]
[White "Mammadzada, Gunay"]
[Black "Savitha, Shri B"]
[Result "1/2-1/2"]
[TimeControl "40/90 + 30 + 30s/move"]
[WhiteFideId "13403729"]
[BlackFideId "35061887"]
[WhiteElo "2441"]
[BlackElo "2375"]

1. Nf3 {[%clk 01:30:51]} {[%emt 00:00:08]} Nf6 {[%clk 01:30:25]} {[%emt
00:00:35]} 2. c4 {[%clk 01:31:16]} {[%emt 00:00:06]} g6 {[%clk 01:30:51]}
{[%emt 00:00:05]} 3. Nc3 {[%clk 01:31:39]} {[%emt 00:00:06]} c5 {[%clk
01:29:26]} {[%emt 00:01:56]} 4. d4 {[%clk 01:31:13]} {[%emt 00:00:55]} cxd4
{[%clk 01:28:30]} {[%emt 00:01:26]} 5. Nxd4 {[%clk 01:31:10]} {[%emt 00:00:33]}
Bg7 {[%clk 01:18:50]} {[%emt 00:10:10]} 6. e4 {[%clk 01:31:22]} {[%emt
00:00:18]} d6 {[%clk 01:17:55]} {[%emt 00:01:25]} 7. Be2 {[%clk 01:31:24]}
{[%emt 00:00:28]} O-O {[%clk 01:17:11]} {[%emt 00:01:15]} 8. O-O {[%clk
01:31:45]} {[%emt 00:00:09]} Nc6 {[%clk 01:16:38]} {[%emt 00:01:03]} 9. Be3
{[%clk 01:32:04]} {[%emt 00:00:10]} Bd7 {[%clk 01:10:45]} {[%emt 00:06:24]} 10.
Qd2 {[%clk 01:29:46]} {[%emt 00:02:47]} Ng4 {[%clk 01:07:48]} {[%emt 00:03:28]}
11. Nxc6 {[%clk 01:27:54]} {[%emt 00:02:22]} bxc6 {[%clk 01:08:03]} {[%emt
00:00:15]} 12. Bxg4 {[%clk 01:28:16]} {[%emt 00:00:09]} Bxg4 {[%clk 01:07:31]}
{[%emt 00:01:01]} 13. Bh6 {[%clk 01:27:32]} {[%emt 00:01:14]} Bxh6 {[%clk
00:56:31]} {[%emt 00:11:31]} 14. Qxh6 {[%clk 01:27:55]} {[%emt 00:00:06]} Qb6
{[%clk 00:55:25]} {[%emt 00:01:36]} 15. Qd2 {[%clk 01:21:57]} {[%emt 00:06:27]}
Rad8 {[%clk 00:48:48]} {[%emt 00:07:08]} 16. Kh1 {[%clk 01:14:53]} {[%emt
00:07:34]} Bc8 {[%clk 00:42:41]} {[%emt 00:06:37]} 17. f4 {[%clk 01:10:19]}
{[%emt 00:05:05]} e6 {[%clk 00:40:02]} {[%emt 00:03:09]} 18. Rad1 {[%clk
00:52:28]} {[%emt 00:18:20]} d5 {[%clk 00:28:45]} {[%emt 00:11:48]} 19. cxd5
{[%clk 00:38:44]} {[%emt 00:14:15]} exd5 {[%clk 00:28:57]} {[%emt 00:00:17]} 20.
e5 {[%clk 00:31:42]} {[%emt 00:07:32]} Bf5 {[%clk 00:28:42]} {[%emt 00:00:45]}
21. Na4 {[%clk 00:31:36]} {[%emt 00:00:36]} Qb5 {[%clk 00:27:22]} {[%emt
00:01:50]} 22. b3 {[%clk 00:30:46]} {[%emt 00:01:20]} f6 {[%clk 00:23:33]}
{[%emt 00:04:19]} 23. exf6 {[%clk 00:28:43]} {[%emt 00:02:33]} Rxf6 {[%clk
00:21:08]} {[%emt 00:02:55]} 24. Rfe1 {[%clk 00:25:58]} {[%emt 00:03:14]} Rdf8
{[%clk 00:20:56]} {[%emt 00:00:43]} 25. h3 {[%clk 00:22:35]} {[%emt 00:03:53]}
Bc8 {[%clk 00:18:13]} {[%emt 00:03:13]} 26. Qd4 {[%clk 00:20:21]} {[%emt
00:02:43]} Rxf4 {[%clk 00:16:21]} {[%emt 00:02:23]} 27. Qxa7 {[%clk 00:20:39]}
{[%emt 00:00:13]} Rf1+ {[%clk 00:13:35]} {[%emt 00:03:16]} 28. Rxf1 {[%clk
00:13:25]} {[%emt 00:07:44]} Rxf1+ {[%clk 00:13:57]} {[%emt 00:00:08]} 29. Rxf1
{[%clk 00:13:51]} {[%emt 00:00:04]} Qxf1+ {[%clk 00:14:20]} {[%emt 00:00:06]}
30. Qg1 {[%clk 00:14:17]} {[%emt 00:00:04]} Qd3 {[%clk 00:12:44]} {[%emt
00:02:06]} 31. Qb6 {[%clk 00:13:15]} {[%emt 00:01:31]} Qf1+ {[%clk 00:11:24]}
{[%emt 00:01:51]} 32. Kh2 {[%clk 00:12:59]} {[%emt 00:00:46]} Qf4+ {[%clk
00:11:29]} {[%emt 00:00:26]} 33. Kg1 {[%clk 00:12:13]} {[%emt 00:01:16]} Qc1+
{[%clk 00:11:50]} {[%emt 00:00:09]} 34. Kh2 {[%clk 00:12:09]} {[%emt 00:00:33]}
1/2-1/2

[Event "FIDE Women's Grand Swiss 2023"]
[Site "Villa Marina, Douglas, Isle of Man, Isle Of Man"]
[Date "2023.10.28"]
[Round "4.14"]
[White "Sandu, Mihaela"]
[Black "Gunina, Valentina"]
[Result "0-1"]
[TimeControl "40/90 + 30 + 30s/move"]
[WhiteFideId "1204327"]
[BlackFideId "4167570"]
[WhiteElo "2298"]
[BlackElo "2439"]

1. e4 {[%clk 01:30:56]} {[%emt 00:00:03]} c6 {[%clk 01:30:46]} {[%emt
00:00:14]} 2. d4 {[%clk 01:31:20]} {[%emt 00:00:06]} d5 {[%clk 01:31:10]}
{[%emt 00:00:05]} 3. e5 {[%clk 01:31:45]} {[%emt 00:00:06]} c5 {[%clk
01:31:26]} {[%emt 00:00:13]} 4. dxc5 {[%clk 01:31:38]} {[%emt 00:00:38]} e6
{[%clk 01:31:32]} {[%emt 00:00:24]} 5. c3 {[%clk 01:30:51]} {[%emt 00:01:17]}
Nd7 {[%clk 01:30:04]} {[%emt 00:01:57]} 6. b4 {[%clk 01:28:24]} {[%emt
00:02:58]} a5 {[%clk 01:24:35]} {[%emt 00:05:58]} 7. Bb5 {[%clk 01:27:07]}
{[%emt 00:01:48]} Ne7 {[%clk 01:24:36]} {[%emt 00:00:28]} 8. Nf3 {[%clk
01:24:26]} {[%emt 00:03:12]} Nc6 {[%clk 01:24:08]} {[%emt 00:00:56]} 9. c4
{[%clk 01:13:51]} {[%emt 00:11:07]} dxc4 {[%clk 01:17:51]} {[%emt 00:06:46]} 10.
Nbd2 {[%clk 01:13:59]} {[%emt 00:00:22]} axb4 {[%clk 01:17:57]} {[%emt
00:00:24]} 11. Nxc4 {[%clk 01:05:17]} {[%emt 00:09:12]} Bxc5 {[%clk 01:17:28]}
{[%emt 00:00:59]} 12. O-O {[%clk 00:53:17]} {[%emt 00:12:30]} O-O {[%clk
01:16:52]} {[%emt 00:01:05]} 13. Qe2 {[%clk 00:44:23]} {[%emt 00:09:25]} Na7
{[%clk 01:10:42]} {[%emt 00:06:40]} 14. Ba4 {[%clk 00:35:44]} {[%emt 00:09:10]}
h6 {[%clk 01:06:56]} {[%emt 00:04:16]} 15. Rd1 {[%clk 00:28:24]} {[%emt
00:07:50]} b5 {[%clk 01:05:00]} {[%emt 00:02:24]} 16. Bc2 {[%clk 00:28:51]}
{[%emt 00:00:04]} bxc4 {[%clk 00:58:54]} {[%emt 00:06:36]} 17. Bxh6 {[%clk
00:24:29]} {[%emt 00:04:53]} Bb7 {[%clk 00:56:05]} {[%emt 00:03:18]} 18. Qxc4
{[%clk 00:04:16]} {[%emt 00:20:44]} Bxf3 {[%clk 00:54:08]} {[%emt 00:02:26]} 19.
gxf3 {[%clk 00:02:45]} {[%emt 00:02:01]} gxh6 {[%clk 00:53:33]} {[%emt
00:01:05]} 20. Kh1 {[%clk 00:03:11]} {[%emt 00:00:04]} Kh8 {[%clk 00:46:59]}
{[%emt 00:07:04]} 21. Rg1 {[%clk 00:03:34]} {[%emt 00:00:07]} Rg8 {[%clk
00:39:44]} {[%emt 00:07:46]} 22. Qf4 {[%clk 00:01:57]} {[%emt 00:02:07]} Qf8
{[%clk 00:37:11]} {[%emt 00:03:01]} 23. Rxg8+ {[%clk 00:02:21]} {[%emt
00:00:07]} Kxg8 {[%clk 00:37:40]} {[%emt 00:00:02]} 24. Rd1 {[%clk 00:02:43]}
{[%emt 00:00:08]} Rd8 {[%clk 00:31:12]} {[%emt 00:06:58]} 25. Qg3+ {[%clk
00:02:21]} {[%emt 00:00:52]} Kh8 {[%clk 00:30:29]} {[%emt 00:01:13]} 26. Qf4
{[%clk 00:01:30]} {[%emt 00:01:22]} Nb5 {[%clk 00:29:51]} {[%emt 00:01:04]} 27.
Qe4 {[%clk 00:01:32]} {[%emt 00:00:31]} f5 {[%clk 00:29:23]} {[%emt 00:00:58]}
28. Qc6 {[%clk 00:01:17]} {[%emt 00:00:45]} Nd4 {[%clk 00:29:26]} {[%emt
00:00:27]} 0-1